fUSD/lending_fUSD_20260515
["ID","MTS","AMOUNT","RATE_DAILY","PERIOD"]
[422310106,1778809849000,-374.31742255,0.00028298,2]
[422310110,1778809849000,-314.0,0.000283,2]
[422310108,1778809849000,-308.0,0.000283,2]
[422310109,1778809849000,-1000.0,0.000283,2]
[422310111,1778809849000,-200.0,0.000283,2]
[422310112,1778809849000,-700.0,0.00028311,30]
[422310127,1778809849000,-2218.09,0.000287,7]
[422310115,1778809849000,-700.0,0.00028311,30]
[422310114,1778809849000,-700.0,0.00028311,30]
[422310116,1778809849000,-700.0,0.00028311,30]
[422310117,1778809849000,-427.0,0.00028311,30]
[422310119,1778809849000,-215.94512088,0.00028323,5]
[422310120,1778809849000,-627.0,0.00028329,6]
[422310122,1778809849000,-152.0,0.00028372,120]
[422310126,1778809849000,-500.0,0.00028666,2]
[422310125,1778809849000,-152.0,0.0002855,11]
[422310123,1778809849000,-2319.0,0.00028372,120]
[422310113,1778809849000,-700.0,0.00028311,30]
[422310149,1778809849000,-181.65711183,0.00028917,30]
[422310158,1778809849000,-695.39793187,0.00029392,2]
[422310151,1778809849000,-208.3309892,0.00029,10]
[422310174,1778809849000,-410.0,0.0002994,2]
[422310177,1778809849000,-1108.79636044,0.00029942,2]
[422310176,1778809849000,-200.0,0.00029942,2]
[422310179,1778809849000,-260.4103811,0.00029942,2]
[422310180,1778809849000,-410.0,0.00029981,2]
[422310181,1778809849000,-366.95497307,0.0003,30]
[422310182,1778809849000,-366.95497307,0.0003,30]
[422310186,1778809849000,-500.0,0.00030003,7]
[422310185,1778809849000,-500.0,0.00030003,120]
[422310187,1778809849000,-627.0,0.00030014,7]
[422310184,1778809849000,-200.0,0.0003,2]
[422310189,1778809849000,-410.0,0.00030066,2]
[422310188,1778809849000,-410.0,0.00030015,2]
[422310191,1778809849000,-410.0,0.000301,2]
[422310190,1778809849000,-410.0,0.00030097,2]
[422310192,1778809849000,-150.0,0.000301,2]
[422310194,1778809849000,-410.0,0.00030126,2]
[422310193,1778809849000,-2354.0,0.000301,120]
[422310150,1778809849000,-150.0,0.00028917,30]
[422310169,1778809849000,-462.51,0.00029864,7]
[422310175,1778809849000,-410.0,0.00029941,2]
[422310183,1778809849000,-650.0,0.0003,2]
[422310172,1778809849000,-3127.98,0.000299,7]
[422310155,1778809849000,-1462.90156854,0.00029224,30]
[422310171,1778809849000,-410.0,0.00029892,2]
[422310152,1778809849000,-15406.43,0.000291,2]
[422310156,1778809849000,-217.15233878,0.0002939,2]
[422310154,1778809849000,-152.0,0.00029206,12]
[422310153,1778809849000,-1029.39030039,0.00029191,30]
[422310157,1778809849000,-621.78829552,0.00029392,2]
[422310159,1778809849000,-200.0,0.00029394,2]
[422310166,1778809849000,-150.0,0.00029601,2]
[422310195,1778809849000,-152.0,0.00030135,7]
[422310160,1778809849000,-1069.23467738,0.00029394,2]
[422310162,1778809849000,-251.11897888,0.00029394,2]
[422310173,1778809849000,-435.19667632,0.00029937,2]
[422310161,1778809849000,-270.0455652,0.00029394,2]
[422310170,1778809849000,-410.0,0.00029891,2]
[422310167,1778809849000,-150.0,0.00029819,2]
[422310165,1778809849000,-171.98170696,0.00029455,5]
[422310178,1778809849000,-280.03725112,0.00029942,2]
[422310164,1778809849000,-627.0,0.00029452,7]
[422310168,1778809849000,-152.0,0.00029862,13]
[422310163,1778809849000,-3988.0,0.00029445,2]
[422310221,1778809850000,-1196.7,0.000304,7]
[422310222,1778809850000,-517.23,0.00030408,120]
[422310228,1778809850000,-152.0,0.00030519,14]
[422310225,1778809850000,-1149.82182577,0.0003049,2]
[422310223,1778809850000,-173.73,0.00030411,120]
[422310227,1778809850000,-270.0455652,0.0003049,2]
[422310224,1778809850000,-200.0,0.0003049,2]
[422310226,1778809850000,-290.39862941,0.0003049,2]
[422310229,1778809850000,-286.0,0.00030524,30]
[422310241,1778809850000,-627.0,0.00030575,8]
[422310230,1778809850000,-911.0,0.00030524,30]
[422310234,1778809850000,-1953.0,0.00030524,30]
[422310232,1778809850000,-302.0,0.00030524,30]
[422310239,1778809850000,-4196.0,0.00030537,30]
[422310233,1778809850000,-492.0,0.00030524,30]
[422310236,1778809850000,-276.0,0.00030537,30]
[422310235,1778809850000,-719.0,0.00030537,30]
[422310238,1778809850000,-3248.0,0.00030537,30]
[422310220,1778809850000,-152.0,0.00030256,7]
[422310231,1778809850000,-476.0,0.00030524,30]
[422310218,1778809850000,-1875.32,0.000302,14]
[422310200,1778809850000,-282.44,0.00030137,2]
[422310215,1778809850000,-152.0,0.00030195,7]
[422310199,1778809850000,-200.0,0.00030137,2]
[422310242,1778809850000,-155.58219099,0.000307,2]
[422310197,1778809850000,-152.0,0.00030135,7]
[422310198,1778809850000,-857.44,0.00030137,2]
[422310196,1778809850000,-152.0,0.00030135,7]
[422310201,1778809850000,-1000.0,0.00030137,30]
[422310202,1778809850000,-2565.37156854,0.00030137,30]
[422310204,1778809850000,-926.0,0.00030144,2]
[422310205,1778809850000,-1354.0,0.00030144,2]
[422310203,1778809850000,-3542.0,0.00030144,2]
[422310210,1778809850000,-933.445,0.00030144,2]
[422310207,1778809850000,-150.159,0.00030144,2]
[422310206,1778809850000,-625.0,0.00030144,2]
[422310209,1778809850000,-275.0,0.00030144,2]
[422310208,1778809850000,-219.0,0.00030144,2]
[422310212,1778809850000,-500.0,0.0003017,120]
[422310211,1778809850000,-3631.0,0.00030144,2]
[422310213,1778809850000,-152.0,0.0003019,30]
[422310216,1778809850000,-152.0,0.00030195,7]
[422310219,1778809850000,-2465.9,0.00030239,2]
[422310214,1778809850000,-152.0,0.0003019,30]
[422310217,1778809850000,-2218.09,0.000302,7]
[422310240,1778809850000,-397.0,0.00030537,30]
[422310237,1778809850000,-523.0,0.00030537,30]
[422310247,1778809850000,-225.18697532,0.00030759,2]
[422310270,1778809850000,-462.51337702,0.00031177,7]
[422310271,1778809850000,-166.39593959,0.00031439,3]
[422310273,1778809850000,-1000.0,0.00031507,40]
[422310272,1778809850000,-1000.0,0.000315,7]
[422310275,1778809850000,-911.0,0.00031524,30]
[422310277,1778809850000,-302.0,0.00031524,30]
[422310276,1778809850000,-476.0,0.00031524,30]
[422310274,1778809850000,-286.0,0.00031524,30]
[422310278,1778809850000,-492.0,0.00031524,30]
[422310279,1778809850000,-1953.0,0.00031524,30]
[422310281,1778809850000,-719.0,0.00031537,30]
[422310284,1778809850000,-3248.0,0.00031537,30]
[422310283,1778809850000,-523.0,0.00031537,30]
[422310282,1778809850000,-276.0,0.00031537,30]
[422310285,1778809850000,-4196.0,0.00031537,30]
[422310286,1778809850000,-397.0,0.00031537,30]
[422310288,1778809850000,-2218.09,0.000316,7]
[422310287,1778809850000,-290.39862941,0.00031586,2]
[422310289,1778809850000,-1875.32,0.000316,14]
[422310290,1778809850000,-2414.99255545,0.00031685,2]
[422310246,1778809850000,-2300.36673272,0.000307,2]
[422310269,1778809850000,-152.0,0.00031175,15]
[422310266,1778809850000,-3127.98,0.000311,7]
[422310280,1778809850000,-166.6,0.00031524,7]
[422310267,1778809850000,-627.0,0.00031137,9]
[422310243,1778809850000,-155.58219099,0.000307,2]
[422310268,1778809850000,-152.0,0.00031161,7]
[422310244,1778809850000,-2300.36673272,0.000307,2]
[422310248,1778809850000,-500.0,0.00030999,120]
[422310245,1778809850000,-2300.36673272,0.000307,2]
[422310249,1778809850000,-500.0,0.00030999,7]
[422310251,1778809850000,-200.0,0.00031038,2]
[422310252,1778809850000,-1192.36523333,0.00031038,2]
[422310256,1778809850000,-1000.0,0.00031061,2]
[422310254,1778809850000,-280.03725112,0.00031038,2]
[422310250,1778809850000,-208.3309892,0.00031,30]
[422310264,1778809850000,-150.0,0.00031081,2]
[422310253,1778809850000,-301.1433787,0.00031038,2]
[422310258,1778809850000,-1000.0,0.00031061,2]
[422310257,1778809850000,-1000.0,0.00031061,2]
[422310259,1778809850000,-1000.0,0.00031061,2]
[422310262,1778809850000,-1000.0,0.0003107,2]
[422310261,1778809850000,-1000.0,0.0003107,2]
[422310260,1778809850000,-1000.0,0.00031061,2]
[422310263,1778809850000,-1847.41533141,0.0003107,2]
[422310265,1778809850000,-200.0,0.00031096,2]
[422310255,1778809850000,-2840.99156854,0.0003105,30]
[422310330,1778809851000,-3368.35715119,0.00032494,2]
[422310322,1778809851000,-366.95497307,0.00032222,30]
[422310328,1778809851000,-3368.35715119,0.00032449,2]
[422310329,1778809851000,-152.0,0.00032487,17]
[422310327,1778809851000,-180.36671131,0.00032337,23]
[422310325,1778809851000,-210.63,0.00032313,30]
[422310326,1778809851000,-210.64,0.00032313,30]
[422310332,1778809851000,-286.0,0.00032524,30]
[422310324,1778809851000,-3368.35715119,0.00032304,2]
[422310323,1778809851000,-627.0,0.0003226,10]
[422310333,1778809851000,-911.0,0.00032524,30]
[422310331,1778809851000,-3368.35715119,0.00032507,2]
[422310336,1778809851000,-492.0,0.00032524,30]
[422310342,1778809851000,-3248.0,0.00032537,30]
[422310337,1778809851000,-1953.0,0.00032524,30]
[422310334,1778809851000,-476.0,0.00032524,30]
[422310338,1778809851000,-3368.35715119,0.00032527,2]
[422310343,1778809851000,-4196.0,0.00032537,30]
[422310341,1778809851000,-523.0,0.00032537,30]
[422310340,1778809851000,-276.0,0.00032537,30]
[422310339,1778809851000,-719.0,0.00032537,30]
[422310344,1778809851000,-397.0,0.00032537,30]
[422310346,1778809851000,-2218.09,0.000326,7]
[422310356,1778809851000,-210.64,0.0003286,30]
[422310347,1778809851000,-150.0,0.00032636,2]
[422310317,1778809851000,-500.0,0.00032194,2]
[422310335,1778809851000,-302.0,0.00032524,30]
[422310320,1778809851000,-179.49,0.00032207,4]
[422310293,1778809851000,-210.63,0.00031765,30]
[422310314,1778809851000,-644.79446246,0.00032131,2]
[422310357,1778809851000,-1002.05,0.00032877,2]
[422310292,1778809851000,-500.0,0.00031737,120]
[422310294,1778809851000,-210.64,0.00031765,30]
[422310291,1778809851000,-627.0,0.00031699,9]
[422310295,1778809851000,-187.16,0.00031765,30]
[422310307,1778809851000,-177.90037405,0.00032,120]
[422310296,1778809851000,-187.16,0.00031765,30]
[422310306,1778809851000,-182.57637513,0.00032,120]
[422310308,1778809851000,-171.00891916,0.00032,120]
[422310300,1778809851000,-1099.24294132,0.00032,120]
[422310298,1778809851000,-152.0,0.00031831,16]
[422310301,1778809851000,-171.00891915,0.00032,120]
[422310321,1778809851000,-2465.9,0.0003221,5]
[422310299,1778809851000,-3116.61156854,0.00031963,30]
[422310303,1778809851000,-213.73155882,0.00032,120]
[422310297,1778809851000,-187.16,0.00031765,30]
[422310304,1778809851000,-220.32364253,0.00032,120]
[422310305,1778809851000,-424.99897538,0.00032,120]
[422310312,1778809851000,-200.0,0.00032055,2]
[422310309,1778809851000,-1517.46570691,0.00032,120]
[422310313,1778809851000,-203.01273771,0.00032128,2]
[422310311,1778809851000,-700.0,0.00032,2]
[422310315,1778809851000,-721.12765535,0.00032131,2]
[422310318,1778809851000,-253.4379,0.00032204,2]
[422310310,1778809851000,-181.24620258,0.00032,120]
[422310319,1778809851000,-179.48,0.00032207,4]
[422310302,1778809851000,-169.15583284,0.00032,120]
[422310350,1778809851000,-1196.7,0.000328,7]
[422310316,1778809851000,-301.1433787,0.00032134,2]
[422310351,1778809851000,-2327.0,0.000328,7]
[422310386,1778809851000,-1517.46570691,0.00033,120]
[422310393,1778809851000,-3127.98,0.000331,30]
[422310408,1778809851000,-40091.0,0.00033252,30]
[422310383,1778809851000,-182.57637513,0.00033,120]
[422310391,1778809851000,-150.330482,0.00033048,2]
[422310392,1778809851000,-3368.35715119,0.00033051,2]
[422310387,1778809851000,-181.24620258,0.00033,120]
[422310385,1778809851000,-171.00891916,0.00033,120]
[422310389,1778809851000,-350.0,0.00033014,5]
[422310390,1778809851000,-3368.35715119,0.00033033,2]
[422310384,1778809851000,-177.90037405,0.00033,120]
[422310388,1778809851000,-160.0,0.00033,120]
[422310382,1778809851000,-424.99897538,0.00033,120]
[422310404,1778809851000,-3631.0,0.00033144,2]
[422310403,1778809851000,-930.0,0.00033144,2]
[422310397,1778809851000,-3542.0,0.00033144,2]
[422310394,1778809851000,-3368.35715119,0.00033122,2]
[422310396,1778809851000,-182.8094738,0.00033143,5]
[422310402,1778809851000,-150.0,0.00033144,2]
[422310398,1778809851000,-926.0,0.00033144,2]
[422310399,1778809851000,-1354.0,0.00033144,2]
[422310401,1778809851000,-150.0,0.00033144,2]
[422310400,1778809851000,-625.0,0.00033144,2]
[422310407,1778809851000,-3368.35715119,0.00033251,2]
[422310406,1778809851000,-3368.35715119,0.00033187,2]
[422310405,1778809851000,-472.73,0.00033166,30]
[422310395,1778809851000,-152.0,0.00033143,18]
[422310377,1778809851000,-500.0,0.00032999,7]
[422310349,1778809851000,-3368.35715119,0.00032729,2]
[422310376,1778809851000,-432.67647641,0.00032999,120]
[422310379,1778809851000,-169.15583284,0.00033,120]
[422310345,1778809851000,-3368.35715119,0.00032591,2]
[422310348,1778809851000,-15406.43,0.000327,2]
[422310355,1778809851000,-210.63,0.0003286,30]
[422310354,1778809851000,-250.0,0.0003286,7]
[422310352,1778809851000,-3368.35715119,0.00032822,2]
[422310358,1778809851000,-857.44,0.00032877,2]
[422310367,1778809851000,-500.0,0.00032877,2]
[422310360,1778809851000,-500.0,0.00032877,30]
[422310369,1778809851000,-500.0,0.00032877,2]
[422310361,1778809851000,-500.0,0.00032877,30]
[422310359,1778809851000,-349.99,0.00032877,2]
[422310368,1778809851000,-500.0,0.00032877,2]
[422310353,1778809851000,-627.0,0.00032822,10]
[422310363,1778809851000,-518.0,0.00032877,30]
[422310362,1778809851000,-500.0,0.00032877,30]
[422310375,1778809851000,-2824.69477737,0.00032984,7]
[422310374,1778809851000,-290.13,0.000329,120]
[422310381,1778809851000,-220.32364253,0.00033,120]
[422310372,1778809851000,-975.26992492,0.00032877,60]
[422310380,1778809851000,-213.73155882,0.00033,120]
[422310378,1778809851000,-1099.24294132,0.00033,120]
[422310370,1778809851000,-500.0,0.00032877,2]
[422310373,1778809851000,-3392.21874406,0.00032877,30]
[422310371,1778809851000,-414.54634519,0.00032877,2]
[422310364,1778809851000,-856.0,0.00032877,120]
[422310366,1778809851000,-500.0,0.00032877,2]
[422310365,1778809851000,-500.0,0.00032877,2]
[422310428,1778809852000,-719.0,0.00033537,30]
[422310421,1778809852000,-3368.35715119,0.00033516,2]
[422310423,1778809852000,-911.0,0.00033524,30]
[422310422,1778809852000,-286.0,0.00033524,30]
[422310419,1778809852000,-3368.35715119,0.00033459,2]
[422310420,1778809852000,-40091.0,0.00033503,30]
[422310415,1778809852000,-627.0,0.00033384,11]
[422310410,1778809852000,-3368.35715119,0.00033258,2]
[422310413,1778809852000,-3368.35715119,0.00033351,2]
[422310414,1778809852000,-569.19449694,0.00033376,7]
[422310417,1778809852000,-2218.09,0.000334,30]
[422310409,1778809852000,-212.26986214,0.00033255,40]
[422310411,1778809852000,-500.0,0.00033305,120]
[422310416,1778809852000,-3368.35715119,0.00033392,2]
[422310426,1778809852000,-492.0,0.00033524,30]
[422310412,1778809852000,-41023.0,0.00033343,30]
[422310424,1778809852000,-476.0,0.00033524,30]
[422310418,1778809852000,-360.0,0.00033452,30]
[422310425,1778809852000,-302.0,0.00033524,30]
[422310427,1778809852000,-1953.0,0.00033524,30]
[422310444,1778809852000,-3368.35715119,0.00033743,2]
[422310443,1778809852000,-3368.35715119,0.00033743,2]
[422310442,1778809852000,-294.87139604,0.00033727,30]
[422310441,1778809852000,-3368.35715119,0.00033712,2]
[422310439,1778809852000,-41023.0,0.00033686,30]
[422310436,1778809852000,-824.5,0.00033603,30]
[422310438,1778809852000,-3368.35715119,0.00033684,2]
[422310437,1778809852000,-472.7556761,0.00033643,30]
[422310445,1778809852000,-39081.95489019,0.00033755,30]
[422310433,1778809852000,-397.0,0.00033537,30]
[422310435,1778809852000,-3368.35715119,0.00033558,2]
[422310440,1778809852000,-3368.35715119,0.00033709,2]
[422310434,1778809852000,-26779.0,0.00033554,2]
[422310431,1778809852000,-3248.0,0.00033537,30]
[422310432,1778809852000,-4196.0,0.00033537,30]
[422310430,1778809852000,-523.0,0.00033537,30]
[422310429,1778809852000,-276.0,0.00033537,30]
[422310486,1778809853000,-6486.69601608,0.00034006,30]
[422310477,1778809853000,-350.0,0.00033973,5]
[422310476,1778809853000,-3368.35715119,0.00033968,2]
[422310472,1778809853000,-354.76311945,0.00033913,2]
[422310474,1778809853000,-3013.59403174,0.00033913,2]
[422310478,1778809853000,-3368.35715119,0.00033995,2]
[422310470,1778809853000,-1517.46570691,0.000339,120]
[422310473,1778809853000,-551.55,0.00026575,7]
[422310475,1778809853000,-627.0,0.00033945,11]
[422310481,1778809853000,-267.216,0.00033997,37]
[422310489,1778809853000,-3368.35715119,0.00034025,2]
[422310488,1778809853000,-15285.01426422,0.00034006,30]
[422310482,1778809853000,-3127.98,0.00034,30]
[422310479,1778809853000,-452.87322658,0.00033997,37]
[422310484,1778809853000,-3368.35715119,0.00034002,2]
[422310487,1778809853000,-788.49966039,0.00034006,30]
[422310485,1778809853000,-17530.79005931,0.00034006,30]
[422310467,1778809853000,-424.99897538,0.000339,120]
[422310483,1778809853000,-750.0,0.00034,2]
[422310480,1778809853000,-998.96077342,0.00033997,37]
[422310468,1778809853000,-182.57637513,0.000339,120]
[422310459,1778809853000,-6053.0,0.00030144,2]
[422310469,1778809853000,-177.90037405,0.000339,120]
[422310490,1778809853000,-41023.0,0.00034029,30]
[422310446,1778809853000,-486.04383556,0.00033755,30]
[422310447,1778809853000,-523.00127425,0.00033755,30]
[422310449,1778809853000,-2899.35842504,0.00033777,2]
[422310448,1778809853000,-468.99872615,0.00033777,2]
[422310450,1778809853000,-2450.64157496,0.00033838,2]
[422310452,1778809853000,-551.43,0.00026373,2]
[422310453,1778809853000,-551.43,0.00026402,7]
[422310451,1778809853000,-214.95940296,9.105e-05,2]
[422310456,1778809853000,-551.43,0.00026488,7]
[422310460,1778809853000,-2980.17280966,0.00033144,2]
[422310458,1778809853000,-551.43,0.00026546,2]
[422310455,1778809853000,-551.43,0.00026459,2]
[422310457,1778809853000,-551.43,0.00026517,30]
[422310461,1778809853000,-1243.73843092,0.00033144,2]
[422310462,1778809853000,-1829.08875942,0.00033144,2]
[422310454,1778809853000,-551.43,0.00026431,30]
[422310463,1778809853000,-96.73266009,0.00033838,2]
[422310464,1778809853000,-820.98291614,0.00033838,2]
[422310466,1778809853000,-391.7433055,0.000339,120]
[422310465,1778809853000,-707.49963582,0.000339,120]
[422310471,1778809853000,-181.24620258,0.000339,120]
[422310493,1778809853000,-3368.35715119,0.00034057,2]
[422310502,1778809853000,-150.0,0.00034267,2]
[422310492,1778809853000,-3368.35715119,0.00034057,2]
[422310518,1778809853000,-3248.0,0.00034537,30]
[422310520,1778809853000,-397.0,0.00034537,30]
[422310516,1778809853000,-276.0,0.00034537,30]
[422310519,1778809853000,-4196.0,0.00034537,30]
[422310524,1778809853000,-178.4690614,0.00034664,2]
[422310521,1778809853000,-1193.6,0.00034544,60]
[422310525,1778809853000,-166.6,0.00034698,14]
[422310522,1778809853000,-912.45,0.00034544,60]
[422310529,1778809853000,-40319.0603184,0.0003476,5]
[422310538,1778809853000,-520.0882445,0.00034881,120]
[422310528,1778809853000,-5334.97320285,0.0003476,5]
[422310530,1778809853000,-793.1136,0.0003476,5]
[422310532,1778809853000,-40091.0,0.00034761,30]
[422310534,1778809853000,-517.23,0.00034846,120]
[422310533,1778809853000,-1500.0,0.00034795,2]
[422310531,1778809853000,-49996.054044,0.0003476,5]
[422310536,1778809853000,-747.8093786,0.0003487,2]
[422310535,1778809853000,-668.65185757,0.0003487,2]
[422310537,1778809853000,-500.0,0.00034872,120]
[422310539,1778809853000,-265.0828347,0.00034881,120]
[422310491,1778809853000,-3368.35715119,0.00034055,2]
[422310527,1778809853000,-62980.68502045,0.0003476,5]
[422310523,1778809853000,-443.88,0.00034544,60]
[422310511,1778809853000,-476.0,0.00034524,30]
[422310517,1778809853000,-523.0,0.00034537,30]
[422310526,1778809853000,-41023.0,0.00034715,30]
[422310499,1778809853000,-210.63,0.0003423,30]
[422310494,1778809853000,-308.63,0.00034071,120]
[422310495,1778809853000,-2465.9,0.00034182,7]
[422310500,1778809853000,-210.63,0.0003423,30]
[422310501,1778809853000,-40091.0,0.00034258,30]
[422310496,1778809853000,-2218.09,0.000342,30]
[422310497,1778809853000,-1875.32,0.000342,14]
[422310504,1778809853000,-41023.0,0.00034372,30]
[422310514,1778809853000,-1953.0,0.00034524,30]
[422310498,1778809853000,-248.208121,0.00034225,120]
[422310515,1778809853000,-719.0,0.00034537,30]
[422310505,1778809853000,-366.95497307,0.00034444,30]
[422310512,1778809853000,-302.0,0.00034524,30]
[422310506,1778809853000,-1196.7,0.000345,7]
[422310508,1778809853000,-40091.0,0.0003451,30]
[422310513,1778809853000,-492.0,0.00034524,30]
[422310510,1778809853000,-911.0,0.00034524,30]
[422310507,1778809853000,-627.0,0.00034507,12]
[422310503,1778809853000,-3368.35715119,0.00034271,2]
[422310509,1778809853000,-286.0,0.00034524,30]
[422310559,1778809854000,-500.0,0.00034881,120]
[422310557,1778809854000,-900.3896942,0.00034881,120]
[422310560,1778809854000,-500.0,0.00034881,120]
[422310553,1778809854000,-500.0,0.00034881,120]
[422310563,1778809854000,-500.0,0.00034881,120]
[422310556,1778809854000,-500.0,0.00034881,120]
[422310558,1778809854000,-500.0,0.00034881,120]
[422310574,1778809854000,-500.0,0.00034881,120]
[422310573,1778809854000,-500.0,0.00034881,120]
[422310555,1778809854000,-500.0,0.00034881,120]
[422310562,1778809854000,-500.0,0.00034881,120]
[422310552,1778809854000,-500.0,0.00034881,120]
[422310543,1778809854000,-500.0,0.00034881,120]
[422310561,1778809854000,-500.0,0.00034881,120]
[422310551,1778809854000,-500.0,0.00034881,120]
[422310550,1778809854000,-500.0,0.00034881,120]
[422310547,1778809854000,-266.0543247,0.00034881,120]
[422310546,1778809854000,-500.0,0.00034881,120]
[422310545,1778809854000,-551.6366372,0.00034881,120]
[422310544,1778809854000,-500.0,0.00034881,120]
[422310565,1778809854000,-500.0,0.00034881,120]
[422310549,1778809854000,-500.0,0.00034881,120]
[422310541,1778809854000,-423.004019,0.00034881,120]
[422310542,1778809854000,-500.0,0.00034881,120]
[422310548,1778809854000,-788.6569425,0.00034881,120]
[422310554,1778809854000,-500.0,0.00034881,120]
[422310566,1778809854000,-500.0,0.00034881,120]
[422310581,1778809854000,-665.2968157,0.00034881,120]
[422310564,1778809854000,-500.0,0.00034881,120]
[422310540,1778809854000,-186.1277215,0.00034881,120]
[422310594,1778809854000,-452.0,0.00034991,2]
[422310595,1778809854000,-8151.11133356,0.00035,7]
[422310593,1778809854000,-500.0,0.00034991,2]
[422310592,1778809854000,-500.0,0.00034991,2]
[422310590,1778809854000,-350.0,0.00034931,5]
[422310591,1778809854000,-236.13407523,0.00034978,60]
[422310588,1778809854000,-180.0,0.0003489,3]
[422310587,1778809854000,-274.48282072,0.0003489,3]
[422310583,1778809854000,-500.0,0.00034881,120]
[422310585,1778809854000,-1158.0,0.00034887,30]
[422310584,1778809854000,-714.5683662,0.00034881,120]
[422310575,1778809854000,-500.0,0.00034881,120]
[422310580,1778809854000,-927.3035782,0.00034881,120]
[422310586,1778809854000,-193.62070518,0.0003489,3]
[422310577,1778809854000,-500.0,0.00034881,120]
[422310582,1778809854000,-500.0,0.00034881,120]
[422310579,1778809854000,-500.0,0.00034881,120]
[422310578,1778809854000,-500.0,0.00034881,120]
[422310576,1778809854000,-500.0,0.00034881,120]
[422310570,1778809854000,-500.0,0.00034881,120]
[422310571,1778809854000,-500.0,0.00034881,120]
[422310568,1778809854000,-846.8901582,0.00034881,120]
[422310569,1778809854000,-500.0,0.00034881,120]
[422310572,1778809854000,-500.0,0.00034881,120]
[422310567,1778809854000,-500.0,0.00034881,120]
[422310589,1778809854000,-220.0,0.0003489,3]
[422310596,1778809869000,-458.32,0.00016438,2]
[422310597,1778809999000,3000.0,0.00027397,120]
[422310598,1778810404000,298.92,0.00027397,120]
[422310604,1778810632000,242.91803075,0.00013303,21]
[422310606,1778810852000,1000.0,0.00027397,120]
[422310607,1778810914000,785.69,0.00027397,120]
[422310608,1778810923000,536.0,0.00027,120]
[422310609,1778810957000,169.43,5.237e-05,2]
[422310626,1778811033000,-871.1,8.467e-05,2]
[422310630,1778811033000,-160.329,8.467e-05,2]
[422310634,1778811033000,-150.0,8.539e-05,2]
[422310637,1778811033000,-254.30955167,8.539e-05,2]
[422310639,1778811033000,-937.5008233,8.539e-05,2]
[422310632,1778811033000,-1067.88055167,8.531e-05,2]
[422310636,1778811033000,-45.69044833,8.539e-05,2]
[422310638,1778811033000,-262.4991767,8.539e-05,2]
[422310640,1778811033000,-485.805,8.54e-05,2]
[422310643,1778811033000,-3137.38489162,8.54e-05,2]
[422310642,1778811033000,-1550.87435389,8.54e-05,2]
[422310641,1778811033000,-3488.88984611,8.54e-05,2]
[422310662,1778811038000,-214.95940296,8.89e-05,2]
[422310670,1778811038000,-994.81,0.00010278,2]
[422310667,1778811038000,-1680.0,9.393e-05,2]
[422310678,1778811038000,-500.0,0.00010958,5]
[422310668,1778811038000,-768.31,9.977e-05,2]
[422310664,1778811038000,-252.45090806,9.314e-05,2]
[422310665,1778811038000,-255.0,9.393e-05,2]
[422310666,1778811038000,-420.0,9.393e-05,2]
[422310663,1778811038000,-160.0,8.906e-05,2]
[422310655,1778811038000,-995.54155527,8.54e-05,2]
[422310661,1778811038000,-208.3309892,8.89e-05,2]
[422310660,1778811038000,-190.01670168,8.597e-05,2]
[422310657,1778811038000,-1481523.35204694,8.54e-05,2]
[422310658,1778811038000,-2500.0,8.54e-05,2]
[422310656,1778811038000,-547.4565743,8.54e-05,2]